[Event "Titled Tuesday Blitz October 25 Early 2022"]
[White "Srbis, Jurica"]
[Black "Zhigalko, Sergei"]
[WhiteFideId "14515555"]
[BlackFideId "13502956"]
[WhiteElo "2481"]
[BlackElo "2662"]
[Result "0-1"]
[Round "06"]
[TimeControl "180+1"]
[Date "2022.10.25"]
[WhiteClock "0:00:44"]
[BlackClock "0:00:06"]

1. e4 {[%clk 0:03:00]}  c5 {[%clk 0:02:59]} 2. Nf3 {[%clk 0:02:59]}  Nc6 {[%clk 0:02:59]} 3. d4 {[%clk 0:03:00]}  cxd4 {[%clk 0:02:59]} 4. Nxd4 {[%clk 0:03:01]}  Nf6 {[%clk 0:02:59]} 5. Nc3 {[%clk 0:03:01]}  e5 {[%clk 0:03:00]} 6. Ndb5 {[%clk 0:03:02]}  d6 {[%clk 0:03:00]} 7. Bg5 {[%clk 0:03:02]}  a6 {[%clk 0:03:00]} 8. Na3 {[%clk 0:03:03]}  b5 {[%clk 0:03:01]} 9. Nd5 {[%clk 0:03:04]}  Be7 {[%clk 0:03:01]} 10. Bxf6 {[%clk 0:03:04]}  Bxf6 {[%clk 0:03:02]} 11. c4 {[%clk 0:03:05]}  b4 {[%clk 0:03:01]} 12. Nc2 {[%clk 0:03:05]}  O-O {[%clk 0:03:01]} 13. g3 {[%clk 0:03:06]}  a5 {[%clk 0:03:01]} 14. b3 {[%clk 0:03:04]}  Bg5 {[%clk 0:03:00]} 15. Bg2 {[%clk 0:03:05]}  Ne7 {[%clk 0:02:52]} 16. O-O {[%clk 0:03:05]}  Nxd5 {[%clk 0:02:52]} 17. Qxd5 {[%clk 0:03:06]}  Be6 {[%clk 0:02:53]} 18. Qd3 {[%clk 0:03:06]}  Qb6 {[%clk 0:02:53]} 19. Rad1 {[%clk 0:03:06]}  Rfd8 {[%clk 0:02:52]} 20. Kh1 {[%clk 0:03:07]}  Bh6 {[%clk 0:02:39]} 21. f4 {[%clk 0:03:05]}  f6 {[%clk 0:02:39]} 22. Ne3 {[%clk 0:03:04]}  Kh8 {[%clk 0:02:28]} 23. Qe2 {[%clk 0:02:14]}  a4 {[%clk 0:02:17]} 24. Ng4 {[%clk 0:02:13]}  Bxg4 {[%clk 0:02:07]} 25. Qxg4 {[%clk 0:02:12]}  axb3 {[%clk 0:02:05]} 26. axb3 {[%clk 0:02:13]}  Ra2 {[%clk 0:01:23]} 27. fxe5 {[%clk 0:02:12]}  fxe5 {[%clk 0:01:18]} 28. Qh4 {[%clk 0:01:34]}  Raa8 {[%clk 0:01:15]} 29. Rf7 {[%clk 0:01:25]}  Qe3 {[%clk 0:01:07]} 30. Rf3 {[%clk 0:01:22]}  Qe2 {[%clk 0:01:03]} 31. Rfd3 {[%clk 0:01:18]}  Rf8 {[%clk 0:00:56]} 32. Rxd6 {[%clk 0:01:17]}  Ra2 {[%clk 0:00:46]} 33. Qh3 {[%clk 0:01:03]}  Bd2 {[%clk 0:00:07]} 34. Rg1 {[%clk 0:01:00]}  Be3 {[%clk 0:00:06]} 35. Rf1 {[%clk 0:00:44]}  Rxf1+ {[%clk 0:00:03]} 36. Bxf1 {[%clk 0:00:43]}  Qf3+ {[%clk 0:00:04]} 37. Qg2 {[%clk 0:00:44]}  Qxg2+ {[%clk 0:00:04]} 38. Bxg2 {[%clk 0:00:42]}  Ra1+ {[%clk 0:00:04]} 39. Bf1 {[%clk 0:00:43]}  Rxf1+ {[%clk 0:00:05]} 40. Kg2 {[%clk 0:00:44]}  Rf2+ {[%clk 0:00:05]} 41. Kh3 {[%clk 0:00:44]}  h6 {[%clk 0:00:05]} 42. c5 {[%clk 0:00:44]}  Bxc5 {[%clk 0:00:05]} 43. Rc6 {[%clk 0:00:43]}  Rc2 {[%clk 0:00:05]} 44. Kg4 {[%clk 0:00:43]}  Rc3 {[%clk 0:00:05]} 45. h4 {[%clk 0:00:44]}  Kh7 {[%clk 0:00:05]} 46. h5 {[%clk 0:00:44]}  Bd4 {[%clk 0:00:06]} 47. Ra6 {[%clk 0:00:43]}  Rxb3 {[%clk 0:00:06]} 48. Kf5 {[%clk 0:00:44]}  Rxg3 {[%clk 0:00:06]} 49. Re6 {[%clk 0:00:44]}  Rg5# {[%clk 0:00:06]} 0-1


[Site "https://www.chess.com"]

[Event "Titled Tuesday Blitz October 25 Early 2022"]
[White "Svane, Frederik"]
[Black "Postny, Evgeny"]
[WhiteFideId "12923044"]
[BlackFideId "2804344"]
[WhiteElo "2466"]
[BlackElo "2473"]
[Result "0-1"]
[Round "06"]
[TimeControl "180+1"]
[Date "2022.10.25"]
[WhiteClock "0:00:05"]
[BlackClock "0:00:08"]

1. c4 {[%clk 0:03:00]}  e5 {[%clk 0:02:58]} 2. g3 {[%clk 0:02:59]}  f5 {[%clk 0:02:58]} 3. Bg2 {[%clk 0:02:58]}  Nf6 {[%clk 0:02:59]} 4. Nc3 {[%clk 0:02:58]}  g6 {[%clk 0:02:59]} 5. d4 {[%clk 0:02:58]}  e4 {[%clk 0:02:56]} 6. Nh3 {[%clk 0:02:58]}  Bg7 {[%clk 0:02:56]} 7. Bg5 {[%clk 0:02:58]}  O-O {[%clk 0:02:52]} 8. e3 {[%clk 0:02:59]}  d6 {[%clk 0:02:48]} 9. Nf4 {[%clk 0:02:59]}  c6 {[%clk 0:02:41]} 10. h4 {[%clk 0:02:58]}  Qe8 {[%clk 0:02:29]} 11. h5 {[%clk 0:02:44]}  Na6 {[%clk 0:02:20]} 12. Qe2 {[%clk 0:02:27]}  Nc7 {[%clk 0:02:12]} 13. O-O-O {[%clk 0:02:25]}  Ne6 {[%clk 0:02:04]} 14. Bxf6 {[%clk 0:02:23]}  Nxf4 {[%clk 0:01:52]} 15. gxf4 {[%clk 0:02:21]}  Rxf6 {[%clk 0:01:46]} 16. f3 {[%clk 0:02:13]}  exf3 {[%clk 0:01:41]} 17. Bxf3 {[%clk 0:02:14]}  Be6 {[%clk 0:01:35]} 18. hxg6 {[%clk 0:01:36]}  hxg6 {[%clk 0:01:34]} 19. Rde1 {[%clk 0:01:36]}  Bf7 {[%clk 0:01:31]} 20. d5 {[%clk 0:01:34]}  Rc8 {[%clk 0:01:19]} 21. Kb1 {[%clk 0:01:32]}  b5 {[%clk 0:01:10]} 22. dxc6 {[%clk 0:01:26]}  bxc4 {[%clk 0:01:02]} 23. Bd5 {[%clk 0:01:22]}  Rxc6 {[%clk 0:00:57]} 24. Bxc6 {[%clk 0:01:14]}  Qxc6 {[%clk 0:00:58]} 25. e4 {[%clk 0:01:14]}  Re6 {[%clk 0:00:47]} 26. Qg2 {[%clk 0:00:51]}  fxe4 {[%clk 0:00:36]} 27. Nxe4 {[%clk 0:00:46]}  d5 {[%clk 0:00:20]} 28. Ng5 {[%clk 0:00:45]}  d4 {[%clk 0:00:18]} 29. Qh3 {[%clk 0:00:34]}  Rxe1+ {[%clk 0:00:16]} 30. Rxe1 {[%clk 0:00:35]}  c3 {[%clk 0:00:14]} 31. Nxf7 {[%clk 0:00:05]}  Kxf7 {[%clk 0:00:15]} 32. Qd3 {[%clk 0:00:06]}  Qb6 {[%clk 0:00:12]} 33. Re2 {[%clk 0:00:05]}  Bf6 {[%clk 0:00:10]} 34. f5 {[%clk 0:00:04]}  g5 {[%clk 0:00:10]} 35. Qc4+ {[%clk 0:00:04]}  Kg7 {[%clk 0:00:10]} 36. Qd3 {[%clk 0:00:05]}  Kf7 {[%clk 0:00:10]} 37. Qc4+ {[%clk 0:00:05]}  Kg7 {[%clk 0:00:11]} 38. Kc1 {[%clk 0:00:05]}  Qd6 {[%clk 0:00:11]} 39. Qd3 {[%clk 0:00:05]}  Qf4+ {[%clk 0:00:11]} 40. Kc2 {[%clk 0:00:05]}  Qb8 {[%clk 0:00:10]} 41. Kb1 {[%clk 0:00:03]}  Qb4 {[%clk 0:00:09]} 42. a3 {[%clk 0:00:03]}  Qb3 {[%clk 0:00:09]} 43. Rc2 {[%clk 0:00:03]}  Qb6 {[%clk 0:00:08]} 44. Re2 {[%clk 0:00:03]}  Qb3 {[%clk 0:00:07]} 45. Rc2 {[%clk 0:00:03]}  Qb6 {[%clk 0:00:07]} 46. Qe4 {[%clk 0:00:04]}  Qb5 {[%clk 0:00:07]} 47. Rh2 {[%clk 0:00:02]}  d3 {[%clk 0:00:06]} 48. Qe6 {[%clk 0:00:01]}  c2+ {[%clk 0:00:06]} 49. Kc1 {[%clk 0:00:02]}  Qxb2+ {[%clk 0:00:06]} 50. Kd2 {[%clk 0:00:02]}  c1=Q+ {[%clk 0:00:07]} 51. Kxd3 {[%clk 0:00:03]}  Qcc3+ {[%clk 0:00:08]} 52. Ke4 {[%clk 0:00:04]}  Qd4+ {[%clk 0:00:08]} 53. Kf3 {[%clk 0:00:04]}  Qbc3+ {[%clk 0:00:08]} 54. Kg2 {[%clk 0:00:05]}  Qg4+ {[%clk 0:00:08]} 55. Kh1 {[%clk 0:00:05]}  Qc1+ {[%clk 0:00:08]} 0-1


[Site "https://www.chess.com"]

[Event "Titled Tuesday Blitz October 25 Early 2022"]
[White "Svane, Rasmus"]
[Black "Matinian, Nikita"]
[WhiteFideId "4657101"]
[BlackFideId "24129100"]
[WhiteElo "2674"]
[BlackElo "2422"]
[Result "0-1"]
[Round "06"]
[TimeControl "180+1"]
[Date "2022.10.25"]
[WhiteClock "0:00:02"]
[BlackClock "0:00:15"]

1. Nf3 {[%clk 0:03:00]}  Nf6 {[%clk 0:02:59]} 2. g3 {[%clk 0:03:01]}  g6 {[%clk 0:03:00]} 3. Bg2 {[%clk 0:03:01]}  Bg7 {[%clk 0:03:01]} 4. O-O {[%clk 0:03:02]}  O-O {[%clk 0:03:02]} 5. d4 {[%clk 0:03:02]}  d6 {[%clk 0:03:02]} 6. Re1 {[%clk 0:03:03]}  Ne4 {[%clk 0:02:58]} 7. Nbd2 {[%clk 0:03:01]}  Nxd2 {[%clk 0:02:56]} 8. Bxd2 {[%clk 0:03:02]}  Nc6 {[%clk 0:02:55]} 9. d5 {[%clk 0:02:57]}  Ne5 {[%clk 0:02:50]} 10. Nxe5 {[%clk 0:02:31]}  Bxe5 {[%clk 0:02:51]} 11. c3 {[%clk 0:02:31]}  Bd7 {[%clk 0:02:50]} 12. Be3 {[%clk 0:02:28]}  c5 {[%clk 0:02:47]} 13. f4 {[%clk 0:02:19]}  Bg7 {[%clk 0:02:47]} 14. Bf2 {[%clk 0:02:20]}  b5 {[%clk 0:02:11]} 15. e4 {[%clk 0:02:19]}  Rb8 {[%clk 0:02:11]} 16. e5 {[%clk 0:02:19]}  b4 {[%clk 0:02:11]} 17. c4 {[%clk 0:02:19]}  a5 {[%clk 0:02:08]} 18. b3 {[%clk 0:02:17]}  a4 {[%clk 0:02:08]} 19. Qd2 {[%clk 0:02:15]}  Ra8 {[%clk 0:02:02]} 20. Rab1 {[%clk 0:02:08]}  axb3 {[%clk 0:02:02]} 21. axb3 {[%clk 0:02:09]}  Ra3 {[%clk 0:02:02]} 22. Qc2 {[%clk 0:01:47]}  Qa5 {[%clk 0:01:55]} 23. Re2 {[%clk 0:01:45]}  Bg4 {[%clk 0:01:49]} 24. Ree1 {[%clk 0:01:36]}  Ra2 {[%clk 0:01:49]} 25. Rb2 {[%clk 0:01:36]}  Rxb2 {[%clk 0:01:39]} 26. Qxb2 {[%clk 0:01:37]}  Ra8 {[%clk 0:01:39]} 27. h3 {[%clk 0:01:36]}  Bf5 {[%clk 0:01:37]} 28. g4 {[%clk 0:01:35]}  Bd7 {[%clk 0:01:37]} 29. Qe2 {[%clk 0:01:34]}  Qa2 {[%clk 0:01:32]} 30. Qe3 {[%clk 0:01:22]}  Qb2 {[%clk 0:01:25]} 31. Re2 {[%clk 0:01:21]}  Qc3 {[%clk 0:00:57]} 32. Qe4 {[%clk 0:01:00]}  Qxb3 {[%clk 0:00:49]} 33. e6 {[%clk 0:00:47]}  Be8 {[%clk 0:00:41]} 34. exf7+ {[%clk 0:00:48]}  Bxf7 {[%clk 0:00:42]} 35. Qxe7 {[%clk 0:00:48]}  Qxc4 {[%clk 0:00:41]} 36. Re4 {[%clk 0:00:49]}  Qc1+ {[%clk 0:00:38]} 37. Re1 {[%clk 0:00:48]}  Qxf4 {[%clk 0:00:37]} 38. Re4 {[%clk 0:00:33]}  Qf6 {[%clk 0:00:36]} 39. Qb7 {[%clk 0:00:33]}  Ra1+ {[%clk 0:00:35]} 40. Bf1 {[%clk 0:00:33]}  h6 {[%clk 0:00:30]} 41. Qb8+ {[%clk 0:00:29]}  Kh7 {[%clk 0:00:30]} 42. g5 {[%clk 0:00:16]}  hxg5 {[%clk 0:00:29]} 43. h4 {[%clk 0:00:16]}  Qf3 {[%clk 0:00:27]} 44. Re3 {[%clk 0:00:14]}  Qd1 {[%clk 0:00:20]} 45. Qb5 {[%clk 0:00:05]}  gxh4 {[%clk 0:00:20]} 46. Rh3 {[%clk 0:00:03]}  g5 {[%clk 0:00:20]} 47. Kg2 {[%clk 0:00:02]}  Bxd5+ {[%clk 0:00:20]} 48. Kg1 {[%clk 0:00:02]}  Be4 {[%clk 0:00:15]} 49. Qc4 {[%clk 0:00:02]}  Qg4+ {[%clk 0:00:15]} 50. Kh2 {[%clk 0:00:02]}  Be5+ {[%clk 0:00:15]} 0-1


[Site "https://www.chess.com"]

[Event "Titled Tuesday Blitz October 25 Early 2022"]
[White "Volkov, Maksim"]
[Black "Yuan, Qingyu"]
[WhiteFideId "54123070"]
[BlackFideId "8609772"]
[WhiteElo "2257"]
[BlackElo "2359"]
[Result "1-0"]
[Round "06"]
[TimeControl "180+1"]
[Date "2022.10.25"]
[WhiteClock "0:01:07"]
[BlackClock "0:00:25"]

1. d4 {[%clk 0:03:00]}  d5 {[%clk 0:03:00]} 2. c4 {[%clk 0:03:01]}  e6 {[%clk 0:03:00]} 3. Nf3 {[%clk 0:03:01]}  Nf6 {[%clk 0:03:01]} 4. g3 {[%clk 0:03:01]}  dxc4 {[%clk 0:03:01]} 5. Bg2 {[%clk 0:03:01]}  c5 {[%clk 0:03:01]} 6. O-O {[%clk 0:03:00]}  Nc6 {[%clk 0:03:02]} 7. dxc5 {[%clk 0:03:00]}  Qxd1 {[%clk 0:03:03]} 8. Rxd1 {[%clk 0:03:00]}  Bxc5 {[%clk 0:03:03]} 9. Nbd2 {[%clk 0:03:01]}  c3 {[%clk 0:03:04]} 10. bxc3 {[%clk 0:03:02]}  O-O {[%clk 0:03:05]} 11. Nb3 {[%clk 0:03:02]}  Be7 {[%clk 0:03:05]} 12. Nfd4 {[%clk 0:03:03]}  Nxd4 {[%clk 0:03:06]} 13. cxd4 {[%clk 0:03:02]}  Nd5 {[%clk 0:03:06]} 14. Bd2 {[%clk 0:03:01]}  f5 {[%clk 0:03:06]} 15. f3 {[%clk 0:02:52]}  b6 {[%clk 0:02:39]} 16. e4 {[%clk 0:02:44]}  Nf6 {[%clk 0:02:32]} 17. Rac1 {[%clk 0:02:39]}  Bd7 {[%clk 0:02:14]} 18. d5 {[%clk 0:02:27]}  exd5 {[%clk 0:01:58]} 19. e5 {[%clk 0:02:27]}  Ne8 {[%clk 0:01:54]} 20. f4 {[%clk 0:02:26]}  Be6 {[%clk 0:01:39]} 21. Nd4 {[%clk 0:02:25]}  Kf7 {[%clk 0:01:31]} 22. Nxe6 {[%clk 0:01:50]}  Kxe6 {[%clk 0:01:30]} 23. Bxd5+ {[%clk 0:01:13]}  Kxd5 {[%clk 0:01:22]} 24. Bb4+ {[%clk 0:01:14]}  Ke4 {[%clk 0:00:34]} 25. Bxe7 {[%clk 0:01:13]}  Rf7 {[%clk 0:00:32]} 26. Kf2 {[%clk 0:01:07]}  b5 {[%clk 0:00:29]} 27. Rd2 {[%clk 0:01:07]}  Nf6 {[%clk 0:00:25]} 28. Re1# {[%clk 0:01:07]} 1-0


[Site "https://www.chess.com"]

[Event "Titled Tuesday Blitz October 25 Early 2022"]
[White "Bacrot, Etienne"]
[Black "Rorrer, Grayson"]
[WhiteFideId "605506"]
[BlackFideId "30944996"]
[WhiteElo "2666"]
[BlackElo "2130"]
[Result "0-1"]
[Round "07"]
[TimeControl "180+1"]
[Date "2022.10.25"]
[WhiteClock "0:00:12"]
[BlackClock "0:00:06"]

1. Nf3 {[%clk 0:03:00]}  Nf6 {[%clk 0:02:59]} 2. g3 {[%clk 0:03:00]}  d5 {[%clk 0:02:58]} 3. Bg2 {[%clk 0:03:01]}  c6 {[%clk 0:02:58]} 4. O-O {[%clk 0:03:01]}  Bg4 {[%clk 0:02:59]} 5. c4 {[%clk 0:03:01]}  e6 {[%clk 0:02:59]} 6. d3 {[%clk 0:03:01]}  dxc4 {[%clk 0:02:57]} 7. dxc4 {[%clk 0:03:01]}  Qxd1 {[%clk 0:02:57]} 8. Rxd1 {[%clk 0:03:02]}  Nbd7 {[%clk 0:02:57]} 9. Nc3 {[%clk 0:03:02]}  Be7 {[%clk 0:02:57]} 10. h3 {[%clk 0:03:02]}  Bh5 {[%clk 0:02:56]} 11. g4 {[%clk 0:03:03]}  Bg6 {[%clk 0:02:56]} 12. Bf4 {[%clk 0:03:02]}  Nc5 {[%clk 0:02:35]} 13. Ne5 {[%clk 0:02:57]}  O-O {[%clk 0:02:30]} 14. Nxg6 {[%clk 0:02:53]}  hxg6 {[%clk 0:02:29]} 15. b4 {[%clk 0:02:54]}  Ncd7 {[%clk 0:02:21]} 16. a3 {[%clk 0:02:10]}  Nb6 {[%clk 0:02:17]} 17. c5 {[%clk 0:01:50]}  Nbd5 {[%clk 0:02:15]} 18. Be5 {[%clk 0:01:50]}  Nxc3 {[%clk 0:02:09]} 19. Bxc3 {[%clk 0:01:50]}  Nd5 {[%clk 0:02:09]} 20. Bd2 {[%clk 0:01:30]}  Bf6 {[%clk 0:02:07]} 21. Rac1 {[%clk 0:01:26]}  Rfd8 {[%clk 0:02:05]} 22. g5 {[%clk 0:01:17]}  Be5 {[%clk 0:01:10]} 23. e3 {[%clk 0:01:05]}  Kf8 {[%clk 0:00:55]} 24. Kf1 {[%clk 0:01:04]}  Ke7 {[%clk 0:00:51]} 25. Ke2 {[%clk 0:01:04]}  Bb2 {[%clk 0:00:40]} 26. Rc2 {[%clk 0:01:00]}  Be5 {[%clk 0:00:30]} 27. Rb1 {[%clk 0:00:57]}  a6 {[%clk 0:00:28]} 28. a4 {[%clk 0:00:49]}  Bc7 {[%clk 0:00:24]} 29. Be1 {[%clk 0:00:38]}  f6 {[%clk 0:00:21]} 30. h4 {[%clk 0:00:36]}  e5 {[%clk 0:00:15]} 31. b5 {[%clk 0:00:29]}  axb5 {[%clk 0:00:15]} 32. axb5 {[%clk 0:00:30]}  Ke6 {[%clk 0:00:14]} 33. b6 {[%clk 0:00:25]}  Bb8 {[%clk 0:00:12]} 34. Bd2 {[%clk 0:00:18]}  f5 {[%clk 0:00:11]} 35. e4 {[%clk 0:00:18]}  Nf4+ {[%clk 0:00:11]} 36. Bxf4 {[%clk 0:00:18]}  exf4 {[%clk 0:00:12]} 37. exf5+ {[%clk 0:00:18]}  gxf5 {[%clk 0:00:11]} 38. h5 {[%clk 0:00:17]}  Ra3 {[%clk 0:00:07]} 39. Re1 {[%clk 0:00:12]}  Kf7 {[%clk 0:00:04]} 40. Kf1 {[%clk 0:00:10]}  Rd7 {[%clk 0:00:01]} 41. Rce2 {[%clk 0:00:06]}  f3 {[%clk 0:00:01]} 42. g6+ {[%clk 0:00:07]}  Kf6 {[%clk 0:00:01]} 43. Re6+ {[%clk 0:00:07]}  Kg5 {[%clk 0:00:01]} 44. Bh1 {[%clk 0:00:07]}  Rd2 {[%clk 0:00:01]} 45. R6e3 {[%clk 0:00:06]}  Rxe3 {[%clk 0:00:01]} 46. Rxe3 {[%clk 0:00:06]}  Rd1+ {[%clk 0:00:02]} 47. Re1 {[%clk 0:00:06]}  Rxe1+ {[%clk 0:00:03]} 48. Kxe1 {[%clk 0:00:06]}  Kxh5 {[%clk 0:00:04]} 49. Bxf3+ {[%clk 0:00:06]}  Kxg6 {[%clk 0:00:04]} 50. Ke2 {[%clk 0:00:07]}  Kf6 {[%clk 0:00:04]} 51. Kd3 {[%clk 0:00:08]}  Ke6 {[%clk 0:00:04]} 52. Kc4 {[%clk 0:00:08]}  Kd7 {[%clk 0:00:04]} 53. Bh5 {[%clk 0:00:08]}  g5 {[%clk 0:00:03]} 54. Bg6 {[%clk 0:00:08]}  Ke6 {[%clk 0:00:02]} 55. Be8 {[%clk 0:00:08]}  Ke7 {[%clk 0:00:03]} 56. Bg6 {[%clk 0:00:07]}  Ke6 {[%clk 0:00:03]} 57. Bh7 {[%clk 0:00:08]}  g4 {[%clk 0:00:02]} 58. Kd4 {[%clk 0:00:08]}  f4 {[%clk 0:00:02]} 59. Ke4 {[%clk 0:00:08]}  g3 {[%clk 0:00:02]} 60. fxg3 {[%clk 0:00:07]}  fxg3 {[%clk 0:00:03]} 61. Bf5+ {[%clk 0:00:08]}  Kf6 {[%clk 0:00:02]} 62. Bh3 {[%clk 0:00:08]}  Ke7 {[%clk 0:00:01]} 63. Kf3 {[%clk 0:00:08]}  Kd8 {[%clk 0:00:02]} 64. Bf5 {[%clk 0:00:07]}  Be5 {[%clk 0:00:02]} 65. Be4 {[%clk 0:00:06]}  Bd4 {[%clk 0:00:02]} 66. Bxc6 {[%clk 0:00:06]}  bxc6 {[%clk 0:00:02]} 67. b7 {[%clk 0:00:07]}  Kc7 {[%clk 0:00:03]} 68. b8=Q+ {[%clk 0:00:08]}  Kxb8 {[%clk 0:00:03]} 69. Kxg3 {[%clk 0:00:09]}  Bxc5 {[%clk 0:00:04]} 70. Kf3 {[%clk 0:00:10]}  Kc7 {[%clk 0:00:05]} 71. Ke4 {[%clk 0:00:11]}  Kb6 {[%clk 0:00:06]} 72. Kd3 {[%clk 0:00:12]}  Kb5 {[%clk 0:00:06]} 0-1


[Site "https://www.chess.com"]

[Event "Titled Tuesday Blitz October 25 Early 2022"]
[White "Dubov, Daniil"]
[Black "Oparin, Grigoriy"]
[WhiteFideId "24126055"]
[BlackFideId "24125890"]
[WhiteElo "2791"]
[BlackElo "2639"]
[Result "1-0"]
[Round "07"]
[TimeControl "180+1"]
[Date "2022.10.25"]
[WhiteClock "0:00:05"]
[BlackClock "0:00:08"]

1. e4 {[%clk 0:03:00]}  e5 {[%clk 0:02:59]} 2. Nf3 {[%clk 0:02:59]}  Nc6 {[%clk 0:03:00]} 3. d4 {[%clk 0:02:57]}  exd4 {[%clk 0:03:00]} 4. Nxd4 {[%clk 0:02:58]}  Bc5 {[%clk 0:03:00]} 5. Nb3 {[%clk 0:02:56]}  Bb6 {[%clk 0:03:00]} 6. Nc3 {[%clk 0:02:55]}  d6 {[%clk 0:02:57]} 7. Qe2 {[%clk 0:02:55]}  a5 {[%clk 0:02:57]} 8. a4 {[%clk 0:02:53]}  Nf6 {[%clk 0:02:55]} 9. Be3 {[%clk 0:02:53]}  Bxe3 {[%clk 0:02:53]} 10. Qxe3 {[%clk 0:02:53]}  O-O {[%clk 0:02:54]} 11. O-O-O {[%clk 0:02:49]}  Nb4 {[%clk 0:02:55]} 12. f3 {[%clk 0:02:41]}  Re8 {[%clk 0:02:52]} 13. g4 {[%clk 0:02:39]}  Be6 {[%clk 0:02:33]} 14. Nd4 {[%clk 0:02:36]}  Nd7 {[%clk 0:02:20]} 15. g5 {[%clk 0:02:27]}  Nc5 {[%clk 0:02:15]} 16. h4 {[%clk 0:02:24]}  Bd7 {[%clk 0:02:06]} 17. h5 {[%clk 0:02:13]}  Ne6 {[%clk 0:01:13]} 18. f4 {[%clk 0:02:01]}  Nxd4 {[%clk 0:01:07]} 19. Qxd4 {[%clk 0:01:59]}  Qe7 {[%clk 0:01:06]} 20. h6 {[%clk 0:01:54]}  f6 {[%clk 0:00:59]} 21. hxg7 {[%clk 0:01:37]}  fxg5 {[%clk 0:00:59]} 22. Bc4+ {[%clk 0:00:50]}  Be6 {[%clk 0:00:59]} 23. Bxe6+ {[%clk 0:00:35]}  Qxe6 {[%clk 0:01:00]} 24. f5 {[%clk 0:00:35]}  Qe5 {[%clk 0:00:47]} 25. Qxe5 {[%clk 0:00:34]}  Rxe5 {[%clk 0:00:46]} 26. f6 {[%clk 0:00:33]}  Re6 {[%clk 0:00:36]} 27. Rdf1 {[%clk 0:00:33]}  Kf7 {[%clk 0:00:37]} 28. Rxh7 {[%clk 0:00:31]}  Rg8 {[%clk 0:00:37]} 29. Rh8 {[%clk 0:00:31]}  Ree8 {[%clk 0:00:32]} 30. Rxg8 {[%clk 0:00:30]}  Rxg8 {[%clk 0:00:33]} 31. Nb5 {[%clk 0:00:31]}  Na6 {[%clk 0:00:27]} 32. Nd4 {[%clk 0:00:30]}  Nc5 {[%clk 0:00:25]} 33. e5 {[%clk 0:00:15]}  dxe5 {[%clk 0:00:20]} 34. Nf5 {[%clk 0:00:15]}  Kxf6 {[%clk 0:00:21]} 35. Nh6+ {[%clk 0:00:16]}  Kxg7 {[%clk 0:00:21]} 36. Nxg8 {[%clk 0:00:16]}  Kxg8 {[%clk 0:00:22]} 37. Rf5 {[%clk 0:00:16]}  Nxa4 {[%clk 0:00:18]} 38. Rxe5 {[%clk 0:00:14]}  b6 {[%clk 0:00:17]} 39. Re7 {[%clk 0:00:11]}  c5 {[%clk 0:00:16]} 40. b3 {[%clk 0:00:08]}  Nc3 {[%clk 0:00:16]} 41. Kd2 {[%clk 0:00:09]}  Nd5 {[%clk 0:00:14]} 42. Re5 {[%clk 0:00:09]}  Nc7 {[%clk 0:00:14]} 43. Kd3 {[%clk 0:00:06]}  Kf7 {[%clk 0:00:14]} 44. Rxg5 {[%clk 0:00:06]}  Ke7 {[%clk 0:00:14]} 45. Ke4 {[%clk 0:00:06]}  Kd7 {[%clk 0:00:13]} 46. Rg6 {[%clk 0:00:07]}  b5 {[%clk 0:00:13]} 47. Ke5 {[%clk 0:00:07]}  a4 {[%clk 0:00:12]} 48. bxa4 {[%clk 0:00:08]}  bxa4 {[%clk 0:00:13]} 49. Rg4 {[%clk 0:00:08]}  Kc6 {[%clk 0:00:13]} 50. Rxa4 {[%clk 0:00:07]}  Kb5 {[%clk 0:00:13]} 51. Ra7 {[%clk 0:00:08]}  Na6 {[%clk 0:00:13]} 52. c4+ {[%clk 0:00:06]}  Kb6 {[%clk 0:00:13]} 53. Ra8 {[%clk 0:00:05]}  Kb7 {[%clk 0:00:12]} 54. Rh8 {[%clk 0:00:05]}  Kb6 {[%clk 0:00:11]} 55. Kd6 {[%clk 0:00:06]}  Nb4 {[%clk 0:00:08]} 56. Rb8+ {[%clk 0:00:05]}  Ka7 {[%clk 0:00:09]} 57. Rb5 {[%clk 0:00:06]}  Nd3 {[%clk 0:00:08]} 58. Rxc5 {[%clk 0:00:05]} 1-0


[Site "https://www.chess.com"]

[Event "Titled Tuesday Blitz October 25 Early 2022"]
[White "Hasangatin, Ramil"]
[Black "Predke, Alexandr"]
[WhiteFideId "4122160"]
[BlackFideId "24107581"]
[WhiteElo "2358"]
[BlackElo "2614"]
[Result "1-0"]
[Round "07"]
[TimeControl "180+1"]
[Date "2022.10.25"]
[WhiteClock "0:00:57"]
[BlackClock "0:00:10"]

1. e4 {[%clk 0:02:52]}  c5 {[%clk 0:02:59]} 2. Nf3 {[%clk 0:02:52]}  e6 {[%clk 0:02:59]} 3. g3 {[%clk 0:02:52]}  Nc6 {[%clk 0:02:57]} 4. Bg2 {[%clk 0:02:52]}  Nf6 {[%clk 0:02:58]} 5. d3 {[%clk 0:02:51]}  Be7 {[%clk 0:02:57]} 6. O-O {[%clk 0:02:51]}  O-O {[%clk 0:02:58]} 7. e5 {[%clk 0:02:46]}  Ng4 {[%clk 0:02:56]} 8. Re1 {[%clk 0:02:43]}  f6 {[%clk 0:02:55]} 9. exf6 {[%clk 0:02:40]}  Bxf6 {[%clk 0:02:56]} 10. Nc3 {[%clk 0:02:37]}  d5 {[%clk 0:02:50]} 11. h3 {[%clk 0:02:35]}  Nxf2 {[%clk 0:02:27]} 12. Kxf2 {[%clk 0:02:34]}  Bd4+ {[%clk 0:02:27]} 13. Ke2 {[%clk 0:02:19]}  e5 {[%clk 0:02:20]} 14. Rf1 {[%clk 0:02:19]}  h6 {[%clk 0:01:39]} 15. Nh4 {[%clk 0:02:02]}  e4 {[%clk 0:01:17]} 16. Rxf8+ {[%clk 0:01:50]}  Qxf8 {[%clk 0:01:15]} 17. Qf1 {[%clk 0:01:50]}  Qe8 {[%clk 0:00:36]} 18. dxe4 {[%clk 0:01:49]}  Bxc3 {[%clk 0:00:22]} 19. bxc3 {[%clk 0:01:47]}  Bxh3 {[%clk 0:00:21]} 20. Bxh3 {[%clk 0:01:33]}  Qxe4+ {[%clk 0:00:21]} 21. Kd1 {[%clk 0:01:22]}  Nb4 {[%clk 0:00:09]} 22. Bf5 {[%clk 0:01:03]}  Qe5 {[%clk 0:00:10]} 23. Qe1 {[%clk 0:00:57]} 1-0


[Site "https://www.chess.com"]

[Event "Titled Tuesday Blitz October 25 Early 2022"]
[White "Jobava, Baadur"]
[Black "Perez Ponsa, Federico"]
[WhiteFideId "13601520"]
[BlackFideId "117927"]
[WhiteElo "2582"]
[BlackElo "2604"]
[Result "1-0"]
[Round "07"]
[TimeControl "180+1"]
[Date "2022.10.25"]
[WhiteClock "0:01:00"]
[BlackClock "0:00:50"]

1. e4 {[%clk 0:03:00]}  c5 {[%clk 0:03:00]} 2. c3 {[%clk 0:03:01]}  Nf6 {[%clk 0:02:59]} 3. e5 {[%clk 0:03:01]}  Nd5 {[%clk 0:03:00]} 4. Nf3 {[%clk 0:03:02]}  d6 {[%clk 0:03:00]} 5. exd6 {[%clk 0:03:02]}  Qxd6 {[%clk 0:02:59]} 6. Na3 {[%clk 0:03:00]}  a6 {[%clk 0:02:59]} 7. Nc4 {[%clk 0:02:57]}  Qd8 {[%clk 0:02:58]} 8. a4 {[%clk 0:02:57]}  Nc6 {[%clk 0:02:57]} 9. d4 {[%clk 0:02:53]}  e6 {[%clk 0:02:42]} 10. Be2 {[%clk 0:02:53]}  cxd4 {[%clk 0:02:41]} 11. Nxd4 {[%clk 0:02:54]}  Nxd4 {[%clk 0:02:37]} 12. Qxd4 {[%clk 0:02:55]}  Qc7 {[%clk 0:02:37]} 13. O-O {[%clk 0:02:52]}  Bd7 {[%clk 0:02:34]} 14. Bf3 {[%clk 0:02:41]}  Bc6 {[%clk 0:02:31]} 15. Ne5 {[%clk 0:02:33]}  Rd8 {[%clk 0:02:29]} 16. Nxc6 {[%clk 0:02:31]}  bxc6 {[%clk 0:02:30]} 17. a5 {[%clk 0:02:14]}  c5 {[%clk 0:02:27]} 18. Qa4+ {[%clk 0:02:07]}  Qd7 {[%clk 0:02:26]} 19. Rd1 {[%clk 0:01:59]}  Be7 {[%clk 0:02:23]} 20. Qc4 {[%clk 0:01:46]}  Qd6 {[%clk 0:02:19]} 21. Qf1 {[%clk 0:01:24]}  c4 {[%clk 0:01:34]} 22. Qxc4 {[%clk 0:01:20]}  O-O {[%clk 0:01:34]} 23. Qf1 {[%clk 0:01:17]}  Qe5 {[%clk 0:01:19]} 24. Qxa6 {[%clk 0:01:10]}  Bd6 {[%clk 0:00:49]} 25. g3 {[%clk 0:01:06]}  Nxc3 {[%clk 0:00:49]} 26. bxc3 {[%clk 0:01:00]}  Qxc3 {[%clk 0:00:50]} 27. Be3 {[%clk 0:01:00]} 1-0


[Site "https://www.chess.com"]